[Event "Live Chess"]
[Site "Chess.com"]
[Date "2010.12.16"]
[Round "-"]
[White "cleveland"]
[Black "hipposcottimus"]
[Result "0-1"]
[CurrentPosition "4R3/p4kpp/2p5/p2p1b2/2q5/P4P2/1r1K2PP/4R3 w - -"]
[Timezone "UTC"]
[ECO "A06"]
[ECOUrl "https://www.chess.com/openings/Reti-Opening-1...d5"]
[UTCDate "2010.12.16"]
[UTCTime "06:44:49"]
[WhiteElo "1343"]
[BlackElo "1469"]
[TimeControl "360"]
[Termination "hipposcottimus won by resignation"]
[StartTime "06:44:49"]
[EndDate "2010.12.16"]
[EndTime "06:50:36"]
[Link "https://www.chess.com/game/live/77787074"]

1. Nf3 {[%clk 0:06:00]} 1... d5 {[%clk 0:06:00]} 2. Ne5 {[%clk 0:05:58.4]} 2... f6 {[%clk 0:05:56.6]} 3. Nf7 {[%clk 0:05:56.9]} 3... Kxf7 {[%clk 0:05:53.5]} 4. d4 {[%clk 0:05:55.4]} 4... f5 {[%clk 0:05:47.9]} 5. e3 {[%clk 0:05:53.8]} 5... Nf6 {[%clk 0:05:45.9]} 6. c4 {[%clk 0:05:46.2]} 6... e6 {[%clk 0:05:45.1]} 7. Nc3 {[%clk 0:05:42.6]} 7... Bb4 {[%clk 0:05:41.5]} 8. Bd2 {[%clk 0:05:40.9]} 8... Bxc3 {[%clk 0:05:38]} 9. Bxc3 {[%clk 0:05:39.1]} 9... Rf8 {[%clk 0:05:36.2]} 10. Qb3 {[%clk 0:05:36.7]} 10... Kg8 {[%clk 0:05:35.2]} 11. O-O-O {[%clk 0:05:34.9]} 11... Nc6 {[%clk 0:05:27.2]} 12. a3 {[%clk 0:05:33]} 12... b6 {[%clk 0:05:18.2]} 13. f3 {[%clk 0:05:25.9]} 13... Na5 {[%clk 0:05:15.7]} 14. Bxa5 {[%clk 0:05:21.4]} 14... bxa5 {[%clk 0:05:15.4]} 15. Qb5 {[%clk 0:05:17]} 15... c6 {[%clk 0:04:54.2]} 16. Qa4 {[%clk 0:05:02.8]} 16... Bd7 {[%clk 0:04:50]} 17. Qc2 {[%clk 0:05:00.9]} 17... Rb8 {[%clk 0:04:44.7]} 18. Kd2 {[%clk 0:04:59.4]} 18... Rb7 {[%clk 0:04:40.5]} 19. Rb1 {[%clk 0:04:57.8]} 19... dxc4 {[%clk 0:04:29.1]} 20. Bxc4 {[%clk 0:04:56]} 20... Nd5 {[%clk 0:04:26.3]} 21. Bxd5 {[%clk 0:04:54.6]} 21... exd5 {[%clk 0:04:22.3]} 22. Rhe1 {[%clk 0:04:51.1]} 22... f4 {[%clk 0:04:20.2]} 23. exf4 {[%clk 0:04:49.1]} 23... Rxf4 {[%clk 0:04:17.5]} 24. Qc3 {[%clk 0:04:29.1]} 24... Qf6 {[%clk 0:04:07.6]} 25. Re5 {[%clk 0:04:21]} 25... Bf5 {[%clk 0:03:57.2]} 26. Rbe1 {[%clk 0:04:15.8]} 26... Qh4 {[%clk 0:03:47.4]} 27. Re8+ {[%clk 0:04:13.2]} 27... Kf7 {[%clk 0:03:43.4]} 28. Qc5 {[%clk 0:04:07.3]} 28... Rxd4+ {[%clk 0:03:32.9]} 29. Kc3 {[%clk 0:03:43.4]} 29... Rc4+ {[%clk 0:03:27.5]} 30. Qxc4 {[%clk 0:03:11.3]} 30... Qxc4+ {[%clk 0:03:24.1]} 31. Kd2 {[%clk 0:03:09.8]} 31... Rxb2+ {[%clk 0:03:19.2]} 0-1

[Event "Live Chess"]
[Site "Chess.com"]
[Date "2010.12.16"]
[Round "-"]
[White "hipposcottimus"]
[Black "cleveland"]
[Result "1-0"]
[CurrentPosition "8/N5p1/5p1p/3k4/4p3/2R4P/1PP3P1/3K4 b - -"]
[Timezone "UTC"]
[ECO "B01"]
[ECOUrl "https://www.chess.com/openings/Scandinavian-Defense-Mieses-Kotrc-Variation-3.Nc3-Qd8-4.Nf3"]
[UTCDate "2010.12.16"]
[UTCTime "06:38:53"]
[WhiteElo "1464"]
[BlackElo "1348"]
[TimeControl "360"]
[Termination "hipposcottimus won by resignation"]
[StartTime "06:38:53"]
[EndDate "2010.12.16"]
[EndTime "06:44:07"]
[Link "https://www.chess.com/game/live/77786015"]

1. e4 {[%clk 0:06:00]} 1... d5 {[%clk 0:06:00]} 2. exd5 {[%clk 0:05:56.2]} 2... Qxd5 {[%clk 0:05:58.8]} 3. Nc3 {[%clk 0:05:54.1]} 3... Qd8 {[%clk 0:05:57.3]} 4. Nf3 {[%clk 0:05:48.6]} 4... Nf6 {[%clk 0:05:55.6]} 5. d4 {[%clk 0:05:46.9]} 5... Nc6 {[%clk 0:05:53.9]} 6. Bg5 {[%clk 0:05:43]} 6... h6 {[%clk 0:05:50.6]} 7. Bxf6 {[%clk 0:05:39.7]} 7... exf6 {[%clk 0:05:49.4]} 8. Bb5 {[%clk 0:05:37.6]} 8... Bd7 {[%clk 0:05:47.5]} 9. d5 {[%clk 0:05:33.3]} 9... Ne5 {[%clk 0:05:42.8]} 10. Qe2 {[%clk 0:05:30.3]} 10... Qe7 {[%clk 0:05:38.2]} 11. O-O-O {[%clk 0:05:18.5]} 11... Nxf3 {[%clk 0:05:36.6]} 12. Bxd7+ {[%clk 0:05:11.4]} 12... Kxd7 {[%clk 0:05:34.7]} 13. Qb5+ {[%clk 0:05:04]} 13... c6 {[%clk 0:05:32]} 14. Qxb7+ {[%clk 0:05:00.6]} 14... Kd6 {[%clk 0:05:25]} 15. dxc6+ {[%clk 0:04:58.8]} 15... Ke6 {[%clk 0:05:21.8]} 16. Qxa8 {[%clk 0:04:56.4]} 16... Ne5 {[%clk 0:05:13]} 17. Rhe1 {[%clk 0:04:50]} 17... Kf5 {[%clk 0:05:00.8]} 18. Qc8+ {[%clk 0:04:36.7]} 18... Qe6 {[%clk 0:04:57.1]} 19. Qxe6+ {[%clk 0:04:30.2]} 19... Kxe6 {[%clk 0:04:55]} 20. c7 {[%clk 0:04:28.3]} 20... Bb4 {[%clk 0:04:52.1]} 21. f4 {[%clk 0:04:22.6]} 21... Rc8 {[%clk 0:04:44.6]} 22. fxe5 {[%clk 0:04:13.5]} 22... fxe5 {[%clk 0:04:43.2]} 23. Re3 {[%clk 0:03:54.7]} 23... Rxc7 {[%clk 0:04:39.7]} 24. Nb5 {[%clk 0:03:52.6]} 24... Rd7 {[%clk 0:04:32.3]} 25. Rxd7 {[%clk 0:03:48.8]} 25... Kxd7 {[%clk 0:04:30.2]} 26. Nxa7 {[%clk 0:03:48.5]} 26... Bc5 {[%clk 0:04:27.8]} 27. Rd3+ {[%clk 0:03:40.6]} 27... Ke6 {[%clk 0:04:21.6]} 28. Nb5 {[%clk 0:03:36.5]} 28... f6 {[%clk 0:04:15]} 29. Rc3 {[%clk 0:03:34.1]} 29... Bg1 {[%clk 0:04:11.4]} 30. h3 {[%clk 0:03:29.1]} 30... Bh2 {[%clk 0:04:08.3]} 31. a4 {[%clk 0:03:26.6]} 31... Bf4+ {[%clk 0:04:06.4]} 32. Kd1 {[%clk 0:03:21.8]} 32... Kd5 {[%clk 0:04:05]} 33. a5 {[%clk 0:03:20.2]} 33... e4 {[%clk 0:04:02.4]} 34. a6 {[%clk 0:03:19.2]} 34... Bb8 {[%clk 0:03:50.3]} 35. a7 {[%clk 0:03:16.5]} 35... Bxa7 {[%clk 0:03:48.4]} 36. Nxa7 {[%clk 0:03:15.7]} 1-0

[Event "Live Chess"]
[Site "Chess.com"]
[Date "2010.12.16"]
[Round "-"]
[White "cleveland"]
[Black "hipposcottimus"]
[Result "0-1"]
[CurrentPosition "r4rk1/p5pp/B1p5/q2p4/P7/1P2PbP1/2P4P/2KR3R w - -"]
[Timezone "UTC"]
[ECO "D00"]
[ECOUrl "https://www.chess.com/openings/Queens-Pawn-Opening-Accelerated-London-System-2...Nf6"]
[UTCDate "2010.12.16"]
[UTCTime "06:34:47"]
[WhiteElo "1354"]
[BlackElo "1458"]
[TimeControl "360"]
[Termination "hipposcottimus won by resignation"]
[StartTime "06:34:47"]
[EndDate "2010.12.16"]
[EndTime "06:38:26"]
[Link "https://www.chess.com/game/live/77785242"]

1. d4 {[%clk 0:06:00]} 1... d5 {[%clk 0:06:00]} 2. Bf4 {[%clk 0:05:58.5]} 2... Nf6 {[%clk 0:05:51.8]} 3. Bg5 {[%clk 0:05:57]} 3... Ne4 {[%clk 0:05:48.4]} 4. Bf4 {[%clk 0:05:55.4]} 4... e6 {[%clk 0:05:42.2]} 5. Nd2 {[%clk 0:05:54]} 5... Nd6 {[%clk 0:05:33.5]} 6. Bxd6 {[%clk 0:05:51.8]} 6... Bxd6 {[%clk 0:05:32.6]} 7. e3 {[%clk 0:05:50.7]} 7... O-O {[%clk 0:05:31.6]} 8. Bd3 {[%clk 0:05:48.8]} 8... f5 {[%clk 0:05:29.3]} 9. Ngf3 {[%clk 0:05:40.1]} 9... c5 {[%clk 0:05:22.8]} 10. b3 {[%clk 0:05:37.8]} 10... cxd4 {[%clk 0:05:18.4]} 11. Nxd4 {[%clk 0:05:35.7]} 11... Nc6 {[%clk 0:05:14.5]} 12. Nxc6 {[%clk 0:05:34.3]} 12... bxc6 {[%clk 0:05:11.7]} 13. Qe2 {[%clk 0:05:32]} 13... e5 {[%clk 0:05:07.6]} 14. Ba6 {[%clk 0:05:30.7]} 14... Bd7 {[%clk 0:05:03.4]} 15. Bd3 {[%clk 0:05:24.9]} 15... e4 {[%clk 0:05:00.9]} 16. Ba6 {[%clk 0:05:23]} 16... f4 {[%clk 0:04:54.5]} 17. exf4 {[%clk 0:05:21.4]} 17... Bxf4 {[%clk 0:04:49]} 18. g3 {[%clk 0:05:19.9]} 18... e3 {[%clk 0:04:31.9]} 19. Nf3 {[%clk 0:05:17.2]} 19... Bh6 {[%clk 0:04:25.7]} 20. O-O-O {[%clk 0:05:10]} 20... Qa5 {[%clk 0:04:13.2]} 21. a4 {[%clk 0:04:59.7]} 21... Bg4 {[%clk 0:04:10.5]} 22. Qxe3 {[%clk 0:04:36.6]} 22... Bxe3+ {[%clk 0:04:02.1]} 23. fxe3 {[%clk 0:04:30.7]} 23... Bxf3 {[%clk 0:04:01.8]} 0-1

[Event "Live Chess"]
[Site "Chess.com"]
[Date "2010.12.16"]
[Round "-"]
[White "hipposcottimus"]
[Black "cleveland"]
[Result "1-0"]
[CurrentPosition "k7/P1B3p1/1p5p/8/8/8/6PP/R5K1 b - -"]
[Timezone "UTC"]
[ECO "C00"]
[ECOUrl "https://www.chess.com/openings/Pirc-Defense-Small-Center-Defense"]
[UTCDate "2010.12.16"]
[UTCTime "06:27:17"]
[WhiteElo "1452"]
[BlackElo "1360"]
[TimeControl "360"]
[Termination "hipposcottimus won by resignation"]
[StartTime "06:27:17"]
[EndDate "2010.12.16"]
[EndTime "06:34:02"]
[Link "https://www.chess.com/game/live/77783857"]

1. e4 {[%clk 0:06:00]} 1... e6 {[%clk 0:06:00]} 2. d4 {[%clk 0:05:59.6]} 2... d6 {[%clk 0:05:58.2]} 3. d5 {[%clk 0:05:59]} 3... e5 {[%clk 0:05:56.6]} 4. f4 {[%clk 0:05:58.2]} 4... Nd7 {[%clk 0:05:53.8]} 5. fxe5 {[%clk 0:05:55.3]} 5... Nxe5 {[%clk 0:05:52]} 6. Nf3 {[%clk 0:05:53.4]} 6... Nxf3+ {[%clk 0:05:49.9]} 7. Qxf3 {[%clk 0:05:52.4]} 7... Qf6 {[%clk 0:05:48.7]} 8. Qc3 {[%clk 0:05:38.2]} 8... Qxc3+ {[%clk 0:05:46.6]} 9. Nxc3 {[%clk 0:05:36.3]} 9... a6 {[%clk 0:05:42]} 10. Bd3 {[%clk 0:05:33.3]} 10... f6 {[%clk 0:05:40.5]} 11. O-O {[%clk 0:05:32.5]} 11... Ne7 {[%clk 0:05:38]} 12. a4 {[%clk 0:05:23.4]} 12... Bd7 {[%clk 0:05:36.1]} 13. b4 {[%clk 0:05:21.7]} 13... b6 {[%clk 0:05:33.7]} 14. a5 {[%clk 0:05:16.7]} 14... b5 {[%clk 0:05:31.9]} 15. Bf4 {[%clk 0:05:06.6]} 15... O-O-O {[%clk 0:05:29.7]} 16. Na2 {[%clk 0:05:00.5]} 16... Ng6 {[%clk 0:05:27.1]} 17. Bg3 {[%clk 0:04:58.5]} 17... Be7 {[%clk 0:05:24.7]} 18. c4 {[%clk 0:04:57.1]} 18... bxc4 {[%clk 0:05:21]} 19. Bxc4 {[%clk 0:04:55.9]} 19... Bb5 {[%clk 0:05:19.5]} 20. Bxb5 {[%clk 0:04:52.9]} 20... axb5 {[%clk 0:05:18.2]} 21. Nc3 {[%clk 0:04:52.6]} 21... Kb7 {[%clk 0:05:12.2]} 22. Nxb5 {[%clk 0:04:51.8]} 22... Ra8 {[%clk 0:05:10.2]} 23. Rfc1 {[%clk 0:04:46.9]} 23... Rhc8 {[%clk 0:05:06.1]} 24. Rc6 {[%clk 0:04:33.9]} 24... Ra6 {[%clk 0:05:01.6]} 25. Rxa6 {[%clk 0:04:23.9]} 25... Kxa6 {[%clk 0:05:00]} 26. Nd4 {[%clk 0:04:22]} 26... Nf8 {[%clk 0:04:55.4]} 27. b5+ {[%clk 0:04:21]} 27... Kb7 {[%clk 0:04:53]} 28. a6+ {[%clk 0:04:15.9]} 28... Ka7 {[%clk 0:04:51.2]} 29. Nc6+ {[%clk 0:04:13.8]} 29... Ka8 {[%clk 0:04:46.7]} 30. Nxe7 {[%clk 0:04:12.7]} 30... Re8 {[%clk 0:04:42.6]} 31. b6 {[%clk 0:04:00.5]} 31... cxb6 {[%clk 0:04:41.1]} 32. Bxd6 {[%clk 0:03:58.3]} 32... Nd7 {[%clk 0:04:34.8]} 33. a7 {[%clk 0:03:44.5]} 33... Ne5 {[%clk 0:04:23.7]} 34. Nc6 {[%clk 0:03:30.1]} 34... Nc4 {[%clk 0:04:15.7]} 35. Bc7 {[%clk 0:03:26]} 35... Rc8 {[%clk 0:04:05.9]} 36. d6 {[%clk 0:02:42.9]} 36... Nxd6 {[%clk 0:03:59]} 37. Bxd6 {[%clk 0:02:38.8]} 37... Rxc6 {[%clk 0:03:57.6]} 38. Bg3 {[%clk 0:02:28.8]} 38... Re6 {[%clk 0:03:49.1]} 39. Bf2 {[%clk 0:02:24.6]} 39... Rc6 {[%clk 0:03:33.9]} 40. Bd4 {[%clk 0:02:16.2]} 40... h6 {[%clk 0:03:31.7]} 41. e5 {[%clk 0:02:13.8]} 41... fxe5 {[%clk 0:03:30.2]} 42. Bxe5 {[%clk 0:02:12.3]} 42... Rc7 {[%clk 0:03:25.5]} 43. Bxc7 {[%clk 0:02:10.9]} 1-0

[Event "Live Chess"]
[Site "Chess.com"]
[Date "2010.12.16"]
[Round "-"]
[White "cleveland"]
[Black "hipposcottimus"]
[Result "0-1"]
[CurrentPosition "6K1/3q4/5k2/8/8/8/8/8 w - -"]
[Timezone "UTC"]
[ECO "A00"]
[ECOUrl "https://www.chess.com/openings/Mieses-Opening-Reversed-Rat-Variation"]
[UTCDate "2010.12.16"]
[UTCTime "06:16:29"]
[WhiteElo "1366"]
[BlackElo "1446"]
[TimeControl "360"]
[Termination "hipposcottimus won by resignation"]
[StartTime "06:16:29"]
[EndDate "2010.12.16"]
[EndTime "06:26:40"]
[Link "https://www.chess.com/game/live/77781684"]

1. d3 {[%clk 0:06:00]} 1... e5 {[%clk 0:06:00]} 2. e3 {[%clk 0:05:58.2]} 2... Ne7 {[%clk 0:05:59.6]} 3. h3 {[%clk 0:05:55]} 3... d5 {[%clk 0:05:59.1]} 4. a3 {[%clk 0:05:53.1]} 4... f5 {[%clk 0:05:58.7]} 5. b3 {[%clk 0:05:51]} 5... d4 {[%clk 0:05:54.6]} 6. g3 {[%clk 0:05:46.1]} 6... dxe3 {[%clk 0:05:53]} 7. Bxe3 {[%clk 0:05:44.3]} 7... f4 {[%clk 0:05:52.3]} 8. gxf4 {[%clk 0:05:41]} 8... exf4 {[%clk 0:05:51.6]} 9. Bxf4 {[%clk 0:05:39.7]} 9... Qd4 {[%clk 0:05:49.7]} 10. c3 {[%clk 0:05:19.2]} 10... Qxf4 {[%clk 0:05:45.1]} 11. Qf3 {[%clk 0:05:16.6]} 11... Qc1+ {[%clk 0:05:43]} 12. Qd1 {[%clk 0:05:14.5]} 12... Qh6 {[%clk 0:05:26]} 13. Qd2 {[%clk 0:05:11.5]} 13... Qb6 {[%clk 0:05:20.6]} 14. b4 {[%clk 0:05:06.5]} 14... Nec6 {[%clk 0:05:18.1]} 15. Qe3+ {[%clk 0:05:04.4]} 15... Be7 {[%clk 0:05:10.6]} 16. Qxb6 {[%clk 0:05:02.8]} 16... axb6 {[%clk 0:05:10.1]} 17. Nd2 {[%clk 0:05:00.6]} 17... O-O {[%clk 0:05:08.8]} 18. Ne2 {[%clk 0:04:56.3]} 18... Re8 {[%clk 0:05:08.5]} 19. Kd1 {[%clk 0:04:54]} 19... Bf6 {[%clk 0:05:08.2]} 20. d4 {[%clk 0:04:51.7]} 20... Bf5 {[%clk 0:05:07]} 21. Ng3 {[%clk 0:04:48.5]} 21... Bg6 {[%clk 0:05:05.6]} 22. Bg2 {[%clk 0:04:46.2]} 22... Ra4 {[%clk 0:04:42.2]} 23. Bxc6 {[%clk 0:04:40.7]} 23... Nxc6 {[%clk 0:04:41.8]} 24. Re1 {[%clk 0:04:37.2]} 24... Rxe1+ {[%clk 0:04:36.6]} 25. Kxe1 {[%clk 0:04:35.6]} 25... Nxb4 {[%clk 0:04:34.8]} 26. cxb4 {[%clk 0:04:32.7]} 26... Bxd4 {[%clk 0:04:33]} 27. Ra2 {[%clk 0:04:31.4]} 27... Bf7 {[%clk 0:04:29.2]} 28. Rc2 {[%clk 0:04:23.6]} 28... c5 {[%clk 0:04:26.9]} 29. bxc5 {[%clk 0:04:21.7]} 29... bxc5 {[%clk 0:04:23.5]} 30. Nf3 {[%clk 0:04:19.9]} 30... Bg6 {[%clk 0:04:14.6]} 31. Rc1 {[%clk 0:04:15]} 31... Rxa3 {[%clk 0:04:04.5]} 32. Nxd4 {[%clk 0:04:12.7]} 32... cxd4 {[%clk 0:04:04.2]} 33. Rc8+ {[%clk 0:04:11.2]} 33... Kf7 {[%clk 0:04:01.8]} 34. Ne2 {[%clk 0:04:07.4]} 34... d3 {[%clk 0:03:59.9]} 35. Nc1 {[%clk 0:04:02.1]} 35... Ra1 {[%clk 0:03:55.1]} 36. Kd2 {[%clk 0:04:00.2]} 36... b5 {[%clk 0:03:45.1]} 37. Rd8 {[%clk 0:03:58.6]} 37... Ke6 {[%clk 0:03:42.5]} 38. Nxd3 {[%clk 0:03:56.8]} 38... Ra2+ {[%clk 0:03:39.4]} 39. Ke3 {[%clk 0:03:52.7]} 39... Ra3 {[%clk 0:03:38]} 40. Ke2 {[%clk 0:03:49.2]} 40... Ra2+ {[%clk 0:03:36.4]} 41. Ke3 {[%clk 0:03:46.7]} 41... Ra3 {[%clk 0:03:34.9]} 42. Ke2 {[%clk 0:03:44.1]} 42... Bh5+ {[%clk 0:03:34]} 43. f3 {[%clk 0:03:42.5]} 43... Ra2+ {[%clk 0:03:30.2]} 44. Ke3 {[%clk 0:03:38.3]} 44... Ra1 {[%clk 0:03:25.1]} 45. Nf4+ {[%clk 0:03:36.5]} 45... Ke7 {[%clk 0:03:20.7]} 46. Rb8 {[%clk 0:03:33.7]} 46... Ra3+ {[%clk 0:03:13.2]} 47. Kf2 {[%clk 0:03:31.9]} 47... Rxf3+ {[%clk 0:03:07.6]} 48. Kg2 {[%clk 0:03:22.5]} 48... Rxf4 {[%clk 0:03:06.4]} 49. Rxb5 {[%clk 0:03:20.7]} 49... g6 {[%clk 0:02:58.9]} 50. Kg3 {[%clk 0:03:18.5]} 50... Rf3+ {[%clk 0:02:54.4]} 51. Kg2 {[%clk 0:03:16.8]} 51... Rf5 {[%clk 0:02:52]} 52. Rb1 {[%clk 0:03:12.6]} 52... h6 {[%clk 0:02:47.5]} 53. Re1+ {[%clk 0:03:10.7]} 53... Kd6 {[%clk 0:02:46.6]} 54. Re8 {[%clk 0:03:07.9]} 54... Bf3+ {[%clk 0:02:42.3]} 55. Kg1 {[%clk 0:03:05.5]} 55... h5 {[%clk 0:02:41]} 56. Rg8 {[%clk 0:03:03.3]} 56... g5 {[%clk 0:02:39.8]} 57. Rg6+ {[%clk 0:02:57.7]} 57... Ke5 {[%clk 0:02:37.9]} 58. Rh6 {[%clk 0:02:55.8]} 58... Rf4 {[%clk 0:02:34.4]} 59. Ra6 {[%clk 0:02:53.7]} 59... Kf5 {[%clk 0:02:29.4]} 60. Ra5+ {[%clk 0:02:51.9]} 60... Kf6 {[%clk 0:02:27.2]} 61. Ra6+ {[%clk 0:02:50.3]} 61... Ke5 {[%clk 0:02:26.1]} 62. Ra5+ {[%clk 0:02:48.8]} 62... Kf6 {[%clk 0:02:25.8]} 63. Ra6+ {[%clk 0:02:47.5]} 63... Kf5 {[%clk 0:02:21.8]} 64. Ra5+ {[%clk 0:02:45.9]} 64... Kg6 {[%clk 0:02:20.5]} 65. Ra6+ {[%clk 0:02:44.6]} 65... Rf6 {[%clk 0:02:20.1]} 66. Ra8 {[%clk 0:02:42.4]} 66... g4 {[%clk 0:02:18.6]} 67. hxg4 {[%clk 0:02:40.5]} 67... hxg4 {[%clk 0:02:17.1]} 68. Rg8+ {[%clk 0:02:38.6]} 68... Kh5 {[%clk 0:02:15.3]} 69. Rh8+ {[%clk 0:02:36.8]} 69... Kg5 {[%clk 0:02:13.8]} 70. Rg8+ {[%clk 0:02:35]} 70... Rg6 {[%clk 0:02:13]} 71. Ra8 {[%clk 0:02:32.9]} 71... Kh4 {[%clk 0:02:12.2]} 72. Rh8+ {[%clk 0:02:30.4]} 72... Kg3 {[%clk 0:02:11.1]} 73. Ra8 {[%clk 0:02:25.5]} 73... Re6 {[%clk 0:02:06.7]} 74. Ra1 {[%clk 0:02:21.7]} 74... Re2 {[%clk 0:02:04.2]} 75. Rf1 {[%clk 0:02:18.2]} 75... Rg2+ {[%clk 0:02:01.8]} 76. Kh1 {[%clk 0:02:11.2]} 76... Rf2+ {[%clk 0:01:50.7]} 77. Kg1 {[%clk 0:02:07]} 77... Rxf1+ {[%clk 0:01:45.9]} 78. Kxf1 {[%clk 0:02:05.3]} 78... Kh2 {[%clk 0:01:41]} 79. Kf2 {[%clk 0:02:01.6]} 79... g3+ {[%clk 0:01:39.8]} 80. Kxf3 {[%clk 0:02:00.2]} 80... g2 {[%clk 0:01:39.2]} 81. Ke4 {[%clk 0:01:57]} 81... g1=Q {[%clk 0:01:37.7]} 82. Ke5 {[%clk 0:01:53.3]} 82... Qg4 {[%clk 0:01:33.1]} 83. Kd5 {[%clk 0:01:51.8]} 83... Kg3 {[%clk 0:01:32]} 84. Ke5 {[%clk 0:01:50.2]} 84... Kf3 {[%clk 0:01:31.3]} 85. Kd5 {[%clk 0:01:48.3]} 85... Ke3 {[%clk 0:01:28.8]} 86. Ke5 {[%clk 0:01:46.6]} 86... Qe4+ {[%clk 0:01:26.9]} 87. Kd6 {[%clk 0:01:44.9]} 87... Qf5 {[%clk 0:01:24.9]} 88. Kc6 {[%clk 0:01:42.9]} 88... Kd4 {[%clk 0:01:23.9]} 89. Kd6 {[%clk 0:01:41]} 89... Qd5+ {[%clk 0:01:22.5]} 90. Ke7 {[%clk 0:01:38.7]} 90... Qc6 {[%clk 0:01:20.6]} 91. Kf7 {[%clk 0:01:33.4]} 91... Ke5 {[%clk 0:01:20.1]} 92. Ke7 {[%clk 0:01:31.6]} 92... Qe6+ {[%clk 0:01:17.9]} 93. Kf8 {[%clk 0:01:27.3]} 93... Qd7 {[%clk 0:01:15.6]} 94. Kg8 {[%clk 0:01:24.3]} 94... Kf6 {[%clk 0:01:12.2]} 0-1

[Event "Live Chess"]
[Site "Chess.com"]
[Date "2010.12.16"]
[Round "-"]
[White "hipposcottimus"]
[Black "cleveland"]
[Result "1-0"]
[CurrentPosition "4R3/3Bk3/3pP1Kp/3Pr1p1/2P5/4b3/6PP/8 b - -"]
[Timezone "UTC"]
[ECO "C00"]
[ECOUrl "https://www.chess.com/openings/Pirc-Defense-Small-Center-Defense"]
[UTCDate "2010.12.16"]
[UTCTime "06:08:48"]
[WhiteElo "1439"]
[BlackElo "1373"]
[TimeControl "360"]
[Termination "hipposcottimus won by checkmate"]
[StartTime "06:08:48"]
[EndDate "2010.12.16"]
[EndTime "06:15:17"]
[Link "https://www.chess.com/game/live/77780340"]

1. e4 {[%clk 0:06:00]} 1... e6 {[%clk 0:06:00]} 2. d4 {[%clk 0:05:56.1]} 2... d6 {[%clk 0:05:58.2]} 3. Nf3 {[%clk 0:05:51.2]} 3... h6 {[%clk 0:05:56.2]} 4. c4 {[%clk 0:05:48.8]} 4... a6 {[%clk 0:05:54.5]} 5. d5 {[%clk 0:05:47.9]} 5... e5 {[%clk 0:05:52.4]} 6. Nfd2 {[%clk 0:05:41]} 6... b6 {[%clk 0:05:50.3]} 7. Be2 {[%clk 0:05:39.1]} 7... Bb7 {[%clk 0:05:47.8]} 8. O-O {[%clk 0:05:36.8]} 8... Nd7 {[%clk 0:05:44.6]} 9. f4 {[%clk 0:05:35.8]} 9... Qe7 {[%clk 0:05:41.8]} 10. fxe5 {[%clk 0:05:33.9]} 10... Nxe5 {[%clk 0:05:38.9]} 11. Nf3 {[%clk 0:05:31.7]} 11... Nxf3+ {[%clk 0:05:37]} 12. Bxf3 {[%clk 0:05:31.4]} 12... O-O-O {[%clk 0:05:31.9]} 13. a4 {[%clk 0:05:28.4]} 13... a5 {[%clk 0:05:27.2]} 14. Bd2 {[%clk 0:05:25.5]} 14... Ba6 {[%clk 0:05:25.2]} 15. b4 {[%clk 0:05:19.4]} 15... axb4 {[%clk 0:05:22.3]} 16. Bxb4 {[%clk 0:05:17.3]} 16... Qd7 {[%clk 0:05:19.5]} 17. a5 {[%clk 0:05:11.6]} 17... Kb8 {[%clk 0:05:07.7]} 18. axb6 {[%clk 0:05:09.7]} 18... cxb6 {[%clk 0:05:06.2]} 19. Rxa6 {[%clk 0:05:06.7]} 19... Qb7 {[%clk 0:05:04.7]} 20. Qa4 {[%clk 0:04:58.4]} 20... Rd7 {[%clk 0:04:58.7]} 21. Ra8+ {[%clk 0:04:51.9]} 21... Qxa8 {[%clk 0:04:56.7]} 22. Qxd7 {[%clk 0:04:51]} 22... Qb7 {[%clk 0:04:52.7]} 23. Qe8+ {[%clk 0:04:46]} 23... Qc8 {[%clk 0:04:50.4]} 24. Qxf7 {[%clk 0:04:44.8]} 24... Nf6 {[%clk 0:04:46.2]} 25. Nc3 {[%clk 0:04:39.3]} 25... Qd7 {[%clk 0:04:41.6]} 26. Qe6 {[%clk 0:04:20.6]} 26... Qxe6 {[%clk 0:04:40.1]} 27. dxe6 {[%clk 0:04:19.5]} 27... Be7 {[%clk 0:04:38.6]} 28. Nd5 {[%clk 0:04:18]} 28... Re8 {[%clk 0:04:29.5]} 29. Nxb6 {[%clk 0:04:10.3]} 29... Kb7 {[%clk 0:04:26.9]} 30. Nd5 {[%clk 0:04:09.2]} 30... Nxd5 {[%clk 0:04:23.5]} 31. exd5 {[%clk 0:04:06.4]} 31... Rf8 {[%clk 0:04:17.8]} 32. Ra1 {[%clk 0:04:05.2]} 32... Ra8 {[%clk 0:04:14.7]} 33. Rb1 {[%clk 0:03:57.1]} 33... Kc7 {[%clk 0:04:12.5]} 34. Bh5 {[%clk 0:03:50.3]} 34... Rb8 {[%clk 0:04:10.2]} 35. Bf7 {[%clk 0:03:37.7]} 35... Kd8 {[%clk 0:03:59.9]} 36. Ba5+ {[%clk 0:03:32.5]} 36... Kc8 {[%clk 0:03:57.4]} 37. Ra1 {[%clk 0:03:30.7]} 37... Ra8 {[%clk 0:03:55.2]} 38. Kf2 {[%clk 0:03:25.5]} 38... Bd8 {[%clk 0:03:53.4]} 39. Be8 {[%clk 0:03:16.4]} 39... Bxa5 {[%clk 0:03:46.7]} 40. Bd7+ {[%clk 0:03:14.8]} 40... Kd8 {[%clk 0:03:44.1]} 41. Rf1 {[%clk 0:02:51.3]} 41... Bb6+ {[%clk 0:03:41.3]} 42. Kf3 {[%clk 0:02:50.3]} 42... Ra3+ {[%clk 0:03:38.6]} 43. Ke4 {[%clk 0:02:48.4]} 43... Re3+ {[%clk 0:03:36]} 44. Kf4 {[%clk 0:02:45.7]} 44... g5+ {[%clk 0:03:34.3]} 45. Kf5 {[%clk 0:02:44.2]} 45... Re5+ {[%clk 0:03:32.3]} 46. Kg6 {[%clk 0:02:41.9]} 46... Be3 {[%clk 0:03:19.1]} 47. Rf8+ {[%clk 0:02:41.3]} 47... Ke7 {[%clk 0:03:16.8]} 48. Re8# {[%clk 0:02:38.3]} 1-0